[Event "II Llinars Open 2022"]
[Site "Llinars del Valles"]
[Date "2022.06.25"]
[Round "1.1"]
[White "Prats Fumado, Gerard"]
[Black "Narciso Dublan, Marc"]
[Result "0-1"]
[ECO "D05"]
[WhiteElo "1752"]
[BlackElo "2464"]
[Annotator "TA"]
[PlyCount "42"]
[EventDate "2022.06.24"]
[EventType "swiss"]
[EventCountry "ESP"]
[SourceTitle "playchess.com"]
[Source "ChessBase"]
[SourceQuality "1"]
[TimeControl "5400+30"]

{[%evp 11,42,1,11,6,20,0,0,-4,10,4,11,7,4,-8,0,-26,-22,-18,-7,-55,-69,-64,-68,-104,-97,-102,-98,-102,-106,-627,-609,-612,-597]} 1. d4 {[%emt 0:00:04]} Nf6 {[%emt 0:00:31]} 2. Nf3 {[%emt 0:00:15]} e6 {[%emt 0:01:00]} 3. c3 {[%emt 0:00:21]} c5 {[%emt 0:00:30]} 4. e3 {[%emt 0:00:31]} d5 {[%emt 0:03:19]} 5. Nbd2 {[%emt 0:00:40]} Nbd7 {[%emt 0:00:11]} 6. Bd3 {[%emt 0:00:45]} Qc7 {[%emt 0:02:16]} 7. O-O {[%emt 0:03:59] D05: Colle System with ...e6.} Be7 {[%emt 0:00:14]} 8. Re1 {[%emt 0:01:10]} O-O {[%emt 0:00:24]} 9. e4 {[%emt 0:02:11] The position is equal.} dxe4 {[%emt 0:00:18]} 10. Nxe4 {[%emt 0:00:14]} b6 {[%emt 0:01:33]} 11. Bg5 {[%emt 0:11:00]} Bb7 {[%emt 0:01:22] [#]} 12. Nxf6+ $146 {[%emt 0:18:37]} ({Predecessor:} 12. Qe2 Rfe8 13. Rad1 Bxe4 14. Bxe4 Nxe4 15. Qxe4 Bxg5 16. Nxg5 Nf6 {½-½ (16) Cibulka,V (2207)-Kleman,M (2230) Slovakia 2015}) 12... Bxf6 {[%emt 0:07:36]} 13. Be4 {[%emt 0:05:57]} Bxe4 {[%emt 0:04:46]} 14. Rxe4 {[%emt 0:00:11]} Rfd8 {[%emt 0:01:58]} 15. Qb3 {[%emt 0:28:51]} (15. Qd2 $11) 15... Bxg5 $15 {[%emt 0:02:19]} 16. Nxg5 {[%emt 0:00:13][%cal Oe4e6]} Nf6 {[%emt 0:00:11]} 17. Rh4 {[%emt 0:07:13] [#]} cxd4 $1 {[%emt 0:01:24]} 18. Rxd4 {[%emt 0:00:51]} Rxd4 {[%emt 0:00:43]} 19. cxd4 {[%emt 0:00:07]} Rc8 {[%emt 0:01:38][%cal Oc7c1] Threatens to win with ...Qc1+!} 20. a4 $2 {[%emt 0:13:34][%mdl 8192] [#]} (20. h3 $17) 20... Qc1+ $3 $19 {[%emt 0:00:31][%mdl 512]} 21. Qd1 {[%emt 0:00:07]} Qxg5 {[%emt 0:00:06] Weighted Error Value: White=0.80/Black=0.03 (flawless)} 0-1

[Event "II Llinars Open 2022"]
[Site "Llinars del Valles"]
[Date "2022.06.25"]
[Round "1.2"]
[White "Garcia Ramos, Daniel"]
[Black "Ortiz Padro, Pol"]
[Result "1-0"]
[ECO "A25"]
[WhiteElo "2441"]
[BlackElo "1748"]
[Annotator "TA"]
[PlyCount "57"]
[EventDate "2022.06.24"]
[EventType "swiss"]
[EventCountry "ESP"]
[SourceTitle "playchess.com"]
[Source "ChessBase"]
[SourceQuality "1"]
[TimeControl "5400+30"]

{[%evp 13,57,0,14,-37,37,46,60,39,36,12,14,16,12,7,72,70,109,56,47,54,60,49,67,47,168,168,152,137,326,324,402,388,386,365,505,492,716,699,700,671,728,697,737,737,757,745]} 1. c4 {[%emt 0:02:03]} e5 {[%emt 0:09:20]} 2. Nc3 {[%emt 0:01:39]} Nc6 {[%emt 0:00:27]} 3. g3 {[%emt 0:00:06]} g6 {[%emt 0:00:34]} 4. Bg2 {[%emt 0:00:05]} Bg7 {[%emt 0:00:04]} 5. e3 {[%emt 0:00:07]} d6 {[%emt 0:00:19]} 6. Nge2 {[%emt 0:00:17]} Be6 {[%emt 0:00:08]} 7. Nd5 {[%emt 0:02:44]} Qd7 {[%emt 0:03:19]} 8. O-O {[%emt 0:04:45] A25: English Opening vs King's Indian with ...Nc6 but without early d3.} (8. h4 $11) 8... Nf6 {[%emt 0:02:20]} (8... h5 $15) 9. d4 $14 {[%emt 0:03:00]} Nd8 {[%emt 0:08:54] [#]} 10. dxe5 $146 {[%emt 0:05:07] White is slightly better.} ({Predecessor:} 10. f4 Nxd5 11. cxd5 Bh3 12. e4 Bxg2 13. Kxg2 exd4 14. Nxd4 O-O 15. Qd3 Re8 16. Bd2 {1-0 (47) Seidens,U (2108)-Mittag,R (2071) Bayern 2012}) 10... dxe5 {[%emt 0:01:35]} 11. Nec3 {[%emt 0:03:02]} c6 {[%emt 0:00:53]} 12. Nxf6+ {[%emt 0:00:29]} Bxf6 {[%emt 0:00:08]} 13. b3 {[%emt 0:00:59]} O-O {[%emt 0:00:54]} (13... Be7 $11 {remains equal.}) 14. Ba3 $16 {[%emt 0:01:04] aiming for Qxd7.} Re8 {[%emt 0:00:24] [#]} 15. Qxd7 {[%emt 0:11:29]} (15. Ne4 $1 $16 {[%cal Re4f6]} Be7 16. Bxe7 Qxe7 17. f4) 15... Bxd7 $14 {[%emt 0:00:14]} 16. Rad1 {[%emt 0:00:06]} Be6 {[%emt 0:00:22]} 17. Rd2 {[%emt 0:00:13]} Bg7 {[%emt 0:01:17]} 18. Ne4 $1 {[%emt 0:03:47]} f5 {[%emt 0:06:13]} (18... f6 $14) 19. Nd6 $36 {[%emt 0:00:39][%mdl 2048] White is really pushing.} Rf8 {[%emt 0:00:05]} 20. Rfd1 {[%emt 0:02:26][%cal Od6f5,Bf1d1,Bd1d8,Bd8b8,Bb8b7,Bb7a7][%mdl 32] Black must now prevent Nxf5! 0x0.00207bf658e4dp-1022s more active pieces.} Rf6 {[%emt 0:02:03] [#] A mistake that costs the game.} (20... Bf6 $16 21. f4 e4) 21. Nxf5 $1 {[%emt 0:02:42][%mdl 512]} gxf5 {[%emt 0:02:04]} (21... Bf8 22. Rxd8) 22. Rxd8+ {[%emt 0:00:06]} Rxd8 {[%emt 0:00:08]} 23. Rxd8+ {[%emt 0:00:02]} Kf7 {[%emt 0:00:22]} 24. Rb8 {[%emt 0:00:11] White is clearly winning.} f4 {[%emt 0:01:02]} (24... Kg6 $142 25. Rxb7 e4) 25. Rxb7+ {[%emt 0:00:05]} Kg6 {[%emt 0:00:21]} 26. exf4 {[%emt 0:00:44]} exf4 {[%emt 0:00:08]} 27. Bxc6 {[%emt 0:00:38]} fxg3 {[%emt 0:00:45]} 28. hxg3 {[%emt 0:00:44]} Bh6 {[%emt 0:03:29]} 29. Rxa7 {[%emt 0:00:46] Weighted Error Value: White=0.11 (very precise) /Black=0.62} 1-0

[Event "II Llinars Open 2022"]
[Site "Llinars del Valles"]
[Date "2022.06.25"]
[Round "1.3"]
[White "Montero Olmos, Javier"]
[Black "Ayats Llobera, Gerard"]
[Result "0-1"]
[ECO "C00"]
[WhiteElo "1771"]
[BlackElo "2423"]
[Annotator "TA"]
[PlyCount "100"]
[EventDate "2022.06.24"]
[EventType "swiss"]
[EventCountry "ESP"]
[SourceTitle "playchess.com"]
[Source "ChessBase"]
[SourceQuality "1"]
[TimeControl "5400+30"]

{[%evp 9,100,2,15,16,21,17,19,18,24,10,24,9,18,0,0,0,0,9,49,66,60,41,46,30,93,83,71,79,228,232,227,69,56,0,0,0,0,0,210,58,45,51,47,-94,-95,-90,-91,-91,-95,-91,-81,-81,0,-94,-89,-89,-88,-90,-90,-83,-82,-125,-100,-103,-85,-90,-73,-95,-95,-136,-139,-229,-229,-300,-77,-77,0,0,0,-1383,-16,-1080,-1150,-573,-537,-1681,-1822,-4637,-4618,-29984,-29985,-29987,-29988]} 1. e4 {[%emt 0:00:02]} c5 {[%emt 0:06:13]} 2. Nf3 {[%emt 0:00:09]} e6 {[%emt 0:00:20]} 3. g3 {[%emt 0:00:20]} Nf6 {[%emt 0:00:06]} 4. Qe2 {[%emt 0:04:45]} Nc6 {[%emt 0:01:39]} 5. Bg2 {[%emt 0:00:09]} d5 {[%emt 0:00:52]} 6. exd5 {[%emt 0:00:09] C00: French: Unusual White 2nd moves.} Nxd5 {[%emt 0:00:06]} 7. O-O {[%emt 0:00:29][%cal Od2d4]} Be7 {[%emt 0:00:07]} 8. Rd1 {[%emt 0:00:15] The position is equal.} Qb6 {[%emt 0:00:28]} 9. c3 {[%emt 0:00:41]} O-O {[%emt 0:00:23]} 10. d4 {[%emt 0:00:13]} cxd4 {[%emt 0:02:13]} 11. Nxd4 {[%emt 0:00:22]} Nxd4 {[%emt 0:00:31]} 12. Rxd4 {[%emt 0:00:43]} Bf6 {[%emt 0:01:03]} 13. Rd1 {[%emt 0:01:05]} Rd8 {[%emt 0:02:18]} 14. Nd2 {[%emt 0:05:14]} Bd7 {[%emt 0:06:06][%cal Of6c3]} 15. Ne4 {[%emt 0:07:13] And now c4 would win.} Be7 {[%emt 0:00:53]} 16. c4 {[%emt 0:03:33] [#]} Nb4 $146 {[%emt 0:02:22]} (16... Nf6 $11) ({Predecessor:} 16... Nf6 17. Bg5 Bc6 18. Nxf6+ Bxf6 19. Bxf6 gxf6 20. Bxc6 Qxc6 21. b3 b6 22. Qg4+ Kf8 23. Qh4 Kg7 24. Qg4+ Kf8 25. Qh4 Kg7 26. Qg4+ Kf8 27. Qh4 {½-½ (27) Timofeev,A (2549)-Pridorozhni,A (2565) Sochi 2017}) 17. a3 $16 {[%emt 0:00:19]} Nc6 {[%emt 0:00:58]} 18. Be3 $36 {[%emt 0:02:33][%mdl 2048] Against Nd4. Black is under strong pressure.} Qb3 {[%emt 0:06:09]} (18... Qc7 $16 {was called for.}) 19. Bc5 $1 $18 {[%emt 0:15:52] Hoping for Bxe7.} Rac8 {[%emt 0:19:22]} 20. a4 $2 {[%emt 0:18:28]} (20. Rd3 $18 Qxc4 21. Bxe7 Nxe7 22. Nd6) 20... Be8 $1 $14 {[%emt 0:02:47]} 21. Nd6 {[%emt 0:00:42]} ({Better is} 21. Bxe7 $14 Nxe7 22. Nd6) 21... Bxd6 $11 {[%emt 0:01:00]} 22. Bxd6 {[%emt 0:05:22]} ({Don't play} 22. Rxd6 Rxd6 23. Bxd6 Nd4 $15) 22... Na5 {[%emt 0:01:34][%csl LRa4,LRc4]} 23. c5 {[%emt 0:01:06]} Nc4 $2 {[%emt 0:07:24] [#]} (23... Qb4 $11) 24. Rd3 $2 {[%emt 0:03:17]} ({Inferior is} 24. Bxb7 Qxb7 25. Qxc4 Qxb2 $11) ({Only move:} 24. Rd4 $1 $18 {[%cal Rd4c4]} b5 25. Bb7) 24... Qxb2 $14 {[%emt 0:02:13]} 25. Qxb2 {[%emt 0:01:19]} Nxb2 {[%emt 0:00:18]} 26. Rb3 {[%emt 0:00:16]} (26. Rd4 $14 {is the one way to stay ahead.} b6 27. a5) 26... Nxa4 $17 {[%emt 0:00:14]} 27. Bxb7 {[%emt 0:02:47]} Nxc5 {[%emt 0:00:26]} 28. Bxc5 {[%emt 0:00:01]} Rxc5 {[%emt 0:00:03]} 29. Rxa7 {[%emt 0:00:16]} Bb5 {[%emt 0:10:29]} 30. Rb1 {[%emt 0:03:52] Inhibits Rd1+.} Be8 {[%emt 0:02:16] Black is more active.} (30... g6 $17) 31. Ra8 {[%emt 0:00:29]} (31. Rb3 $1 $11) 31... Rxa8 {[%emt 0:00:14]} 32. Bxa8 {[%emt 0:00:12][%mdl 4096] Endgame KRB-KRB} g5 {[%emt 0:01:30]} 33. Rb8 {[%emt 0:01:33]} Kf8 {[%emt 0:01:24]} 34. Bf3 {[%emt 0:00:07]} Ke7 {[%emt 0:00:54]} 35. Rb4 {[%emt 0:02:16]} f5 {[%emt 0:05:43]} 36. h3 {[%emt 0:03:42]} h6 {[%emt 0:00:46]} 37. g4 {[%emt 0:01:37]} f4 {[%emt 0:02:29]} 38. Rb7+ {[%emt 0:02:37]} Kf6 {[%emt 0:00:31]} 39. Rh7 {[%emt 0:00:21]} Bg6 {[%emt 0:00:21]} 40. Rh8 {[%emt 0:01:29]} ({Don't blunder} 40. Rxh6 $2 Kg7 41. Rxg6+ Kxg6 42. Be4+ Kf6 $19) (40. Rd7 $17 {was necessary.}) 40... e5 $19 {[%emt 0:00:18]} 41. Ra8 {[%emt 0:03:31]} e4 $2 {[%emt 0:06:39]} (41... Bd3 $19 {is more deadly.} 42. Bb7 e4) 42. Ra6+ $17 {[%emt 0:00:10]} Ke5 {[%emt 0:00:14]} (42... Kg7 $17 43. Ra7+ Kf8) 43. Rxg6 $11 {[%emt 0:00:17] aiming for Bg2.} exf3 {[%emt 0:00:03] KR-KR} 44. Ra6 $2 {[%emt 0:07:42][%mdl 8192]} (44. Rxh6 $11 Rc1+ 45. Kh2) 44... Rc1+ $19 {[%emt 0:00:25]} 45. Kh2 {[%emt 0:00:01] [#]} Rf1 $1 {[%emt 0:02:53]} 46. Ra2 {[%emt 0:00:01]} Kd4 {[%emt 0:00:36]} 47. Rb2 {[%emt 0:00:25]} Kd3 {[%emt 0:00:48]} 48. Ra2 {[%emt 0:00:16]} Rd1 {[%emt 0:00:45]} 49. Ra3+ {[%emt 0:01:11]} Ke2 {[%emt 0:00:23]} 50. Ra2+ {[%emt 0:00:01]} Rd2 {[%emt 0:00:38] Quite a comeback for Black.  Weighted Error Value: White=0.71/Black=0.30} 0-1

[Event "II Llinars Open 2022"]
[Site "Llinars del Valles"]
[Date "2022.06.25"]
[Round "1.4"]
[White "Valenzuela Gomez, Fernando"]
[Black "Casares Bonals, Asier"]
[Result "1-0"]
[ECO "D41"]
[WhiteElo "2373"]
[BlackElo "1741"]
[Annotator "TA"]
[PlyCount "69"]
[EventDate "2022.06.24"]
[EventType "swiss"]
[EventCountry "ESP"]
[SourceTitle "playchess.com"]
[Source "ChessBase"]
[SourceQuality "1"]
[TimeControl "5400+30"]

{[%evp 10,69,28,43,37,10,2,7,28,18,26,22,53,22,30,24,60,60,60,60,60,61,66,73,65,54,59,42,47,46,54,58,59,52,64,45,195,201,165,95,183,190,180,182,193,187,201,195,294,282,302,241,341,333,351,347,547,535,627,564,666,635]} 1. Nf3 {[%emt 0:00:03]} Nf6 {[%emt 0:00:43]} 2. c4 {[%emt 0:00:36]} e6 {[%emt 0:03:39]} 3. Nc3 {[%emt 0:01:26]} d5 {[%emt 0:01:18]} 4. d4 {[%emt 0:00:19]} c5 {[%emt 0:03:31]} 5. cxd5 {[%emt 0:00:33]} Nxd5 {[%emt 0:00:54]} 6. e4 {[%emt 0:00:09]} cxd4 {[%emt 0:13:18] D41: Queen's Gambit Declined: Semi-Tarrasch with 5 cxd5.} 7. Nb5 {[%emt 0:33:31]} Nf6 {[%emt 0:03:58] [#]} 8. Qxd4 $146 {[%emt 0:07:39]} ({Predecessor:} 8. e5 Ne4 9. Qa4 Nc5 10. Nd6+ Ke7 11. Qxd4 Ncd7 12. Bb5 Nc6 13. Bxc6 bxc6 14. O-O {1-0 (23) Tscherepanov,L (1887)-Zumholz,J (1498) Norderstedt 2013}) 8... a6 {[%emt 0:05:07] The position is equal.} (8... Bd7 $5 {[%cal Rb8c6]}) 9. Qxd8+ {[%emt 0:01:28]} Kxd8 {[%emt 0:00:09]} 10. Nc3 {[%emt 0:00:08]} Bb4 {[%emt 0:00:59]} 11. Bd2 {[%emt 0:00:07]} (11. Bd3 $5 {[%cal Re1g1]}) 11... Ke7 {[%emt 0:03:57]} 12. a3 {[%emt 0:04:30]} Bc5 {[%emt 0:04:40]} 13. e5 {[%emt 0:01:23]} Nfd7 {[%emt 0:04:52]} 14. Ne4 {[%emt 0:00:56] aiming for Rc1.} Nc6 {[%emt 0:03:30]} 15. Bg5+ {[%emt 0:00:59]} Kf8 {[%emt 0:04:18]} 16. Nxc5 {[%emt 0:03:19]} Nxc5 {[%emt 0:00:25]} 17. h4 {[%emt 0:00:53]} h6 {[%emt 0:02:38]} 18. Bf4 $36 {[%emt 0:00:37][%mdl 2048] White fights for an advantage.} (18. Be3 $5 {[%cal Re3c5]} Nd7 19. Rc1 $14) 18... Ke7 {[%emt 0:03:15]} 19. Rc1 {[%emt 0:01:28]} Nd7 {[%emt 0:01:33]} 20. h5 {[%emt 0:01:58]} Nb6 {[%emt 0:04:38]} 21. Be3 {[%emt 0:01:01]} Nd7 {[%emt 0:01:26]} 22. Rh4 {[%emt 0:01:34] White is more active.} Ncxe5 {[%emt 0:08:52]} (22... Rd8 $14) 23. Nxe5 $18 {[%emt 0:00:26]} Nxe5 {[%emt 0:00:10] [#]} 24. Bd4 {[%emt 0:03:29]} ({White should try} 24. Bc5+ $1 $18 Ke8 25. Bd4) 24... f6 {[%emt 0:03:00]} (24... Nc6 $16) 25. Bxe5 {[%emt 0:00:05]} fxe5 {[%emt 0:00:06] [#]} 26. Rg4 $1 {[%emt 0:00:27]} Rg8 {[%emt 0:03:00]} 27. Rc7+ {[%emt 0:00:57]} Bd7 {[%emt 0:00:07]} 28. Rxb7 {[%emt 0:00:53]} Kd8 {[%emt 0:08:27]} (28... Kd6 $142 29. Rgb4 Rgd8 30. R4b6+ Ke7 31. Bxa6 (31. Rxa6 Rxa6 32. Bxa6 Kf6 $18) 31... Kf6) 29. Bd3 {[%emt 0:02:10]} Kc8 {[%emt 0:00:57]} 30. Rb6 {[%emt 0:01:02]} a5 {[%emt 0:01:58]} (30... Kc7 {was necessary.}) 31. Bh7 {[%emt 0:01:13]} Kc7 {[%emt 0:01:11]} 32. Rb3 {[%emt 0:00:03]} Rgb8 {[%emt 0:01:22]} (32... Rgf8 {was worth a try.} 33. Rxg7 Rf4) 33. Rc3+ {[%emt 0:00:01] White is clearly winning.} Bc6 {[%emt 0:01:36]} 34. Rgc4 {[%emt 0:04:05]} Rb6 {[%emt 0:00:48] [#]} 35. Rxc6+ $1 {[%emt 0:00:12][%mdl 512] Weighted Error Value: White=0.08 (flawless) /Black=0.42} 1-0

[Event "II Llinars Open 2022"]
[Site "Llinars del Valles"]
[Date "2022.06.25"]
[Round "1.5"]
[White "Ramirez Cortes, Izan"]
[Black "Jimenez Ruano, Adrian"]
[Result "0-1"]
[ECO "B09"]
[WhiteElo "1713"]
[BlackElo "2263"]
[Annotator "TA"]
[PlyCount "148"]
[EventDate "2022.06.24"]
[EventType "swiss"]
[EventCountry "ESP"]
[SourceTitle "playchess.com"]
[Source "ChessBase"]
[SourceQuality "1"]
[TimeControl "5400+30"]

{[%evp 11,148,0,16,11,52,52,72,53,57,66,64,55,58,65,59,69,106,110,125,106,108,28,30,23,25,3,33,37,59,46,61,37,40,38,46,25,68,13,68,30,42,45,56,45,64,64,60,44,63,4,73,4,4,42,72,73,84,43,39,0,0,0,0,0,0,0,0,0,0,0,0,0,0,0,0,0,0,0,0,0,0,0,0,0,0,0,0,0,0,0,0,0,0,0,0,0,0,0,0,0,0,0,0,0,0,0,0,0,0,0,0,0,0,0,0,0,0,0,0,0,0,0,0,0,0,0,0,0,0,-590,-584,-29956,0,-29978,-29978,-29989,-29990,-29989,-29990]} 1. e4 {[%emt 0:04:50]} g6 {[%emt 0:00:09]} 2. d4 {[%emt 0:00:14]} Bg7 {[%emt 0:00:05]} 3. Nc3 {[%emt 0:00:11]} d6 {[%emt 0:00:07]} 4. f4 {[%emt 0:00:19]} Nf6 {[%emt 0:00:37][%cal Bg8f6,Bf6d5,Bd5c3][%mdl 32]} 5. e5 {[%emt 0:00:06]} dxe5 {[%emt 0:00:40]} 6. fxe5 {[%emt 0:01:49]} Nd5 {[%emt 0:04:07]} 7. Nf3 {[%emt 0:00:02] B09: Pirc Defence: Austrian Attack.} c6 {[%emt 0:02:26]} 8. Bc4 {[%emt 0:00:34]} Be6 {[%emt 0:06:22]} 9. Ng5 {[%emt 0:09:50] White is better.} Nxc3 {[%emt 0:07:13]} 10. Nxe6 {[%emt 0:00:16]} Nxd1 {[%emt 0:00:17]} 11. Nxd8 {[%emt 0:00:25]} Kxd8 {[%emt 0:01:11]} 12. Kxd1 {[%emt 0:00:04]} f6 {[%emt 0:00:43]} 13. exf6 {[%emt 0:02:09]} Bxf6 {[%emt 0:02:15]} 14. c3 {[%emt 0:01:03]} Nd7 {[%emt 0:00:06] [#]} 15. Be6 $146 {[%emt 0:01:26]} ({Predecessor:} 15. Kc2 Kc7 16. Be6 g5 17. Rf1 h6 18. Be3 Raf8 19. Rf3 Bg7 20. Raf1 Rxf3 21. Rxf3 {1-0 (48) Fabian,J (2237)-Horn,J (2080) Slovakia 2007}) 15... Nf8 {[%emt 0:01:02]} 16. Re1 {[%emt 0:04:07]} (16. Bb3 $16) 16... Nxe6 $11 {[%emt 0:00:07]} 17. Rxe6 {[%emt 0:00:02]} Kd7 {[%emt 0:00:00]} 18. Re2 {[%emt 0:00:13]} g5 {[%emt 0:01:58]} 19. Kc2 {[%emt 0:00:58]} a5 {[%emt 0:03:32]} 20. Bd2 {[%emt 0:15:42]} h6 {[%emt 0:01:58]} 21. Rae1 {[%emt 0:00:06]} b5 {[%emt 0:00:50]} 22. Re4 {[%emt 0:00:21]} Rhc8 {[%emt 0:01:19]} 23. Be3 {[%emt 0:03:37]} Ke8 {[%emt 0:03:13]} 24. b3 {[%emt 0:02:13]} (24. g4 $14) 24... Kf7 {[%emt 0:00:21]} (24... a4 $11) 25. Bf2 {[%emt 0:00:29]} b4 {[%emt 0:02:10]} 26. cxb4 {[%emt 0:01:28]} axb4 {[%emt 0:00:12]} 27. Kb1 {[%emt 0:00:13]} Rd8 {[%emt 0:03:16]} 28. Rc1 {[%emt 0:01:29]} Rd6 {[%emt 0:00:08]} 29. Rc4 {[%emt 0:00:29]} Rad8 {[%emt 0:00:01][%cal Oc6c5]} 30. Be3 {[%emt 0:03:58]} (30. Rxb4 c5 31. Rc4 (31. dxc5 $2 Rd1+ 32. Kc2 R8d2#) 31... cxd4 $11) ({Better is} 30. Be1 $1 $14) 30... h5 {[%emt 0:09:40]} (30... Kg6 $1 $11 {remains equal.} 31. g4 (31. Rxb4 $2 Kf5 $19) 31... Rh8) 31. h3 {[%emt 0:02:32]} ({White should play} 31. Rxb4 $16 {White wants to play Kc2.} Kg6 32. Kc2) 31... Kg6 $1 {[%emt 0:00:47] aiming for ...Kf5.} 32. g4 {[%emt 0:01:05]} (32. Rxb4 $2 Kf5 33. d5 cxd5 34. g4+ hxg4 35. Rxg4 (35. hxg4+ $2 Kg6 $19) 35... d4 36. Rb5+ Rd5 37. Rxd5+ Rxd5 $19) 32... hxg4 {[%emt 0:00:12]} 33. hxg4 {[%emt 0:01:26]} Rh8 {[%emt 0:00:04]} 34. Rxb4 {[%emt 0:09:14]} Rh1+ {[%emt 0:00:10]} 35. Kc2 {[%emt 0:06:32]} (35. Kb2 $5 {[%cal Rb4c4]}) 35... Rh2+ {[%emt 0:01:33]} 36. Kc3 {[%emt 0:08:25]} Rxa2 {[%emt 0:03:49]} 37. Rc4 {[%emt 0:02:58]} Ra5 {[%emt 0:00:24]} 38. b4 {[%emt 0:04:16]} Ra3+ {[%emt 0:00:53]} 39. Kc2 {[%emt 0:00:08]} Ra2+ {[%emt 0:02:49]} 40. Kc3 {[%emt 0:02:33]} Re2 {[%emt 0:00:45]} 41. Kd3 {[%emt 0:00:09]} Re1 {[%emt 0:00:55]} 42. Kd2 {[%emt 0:00:12]} Rh1 {[%emt 0:02:02]} 43. Kc3 {[%emt 0:01:52]} Rh3 {[%emt 0:00:31]} 44. Kc2 {[%emt 0:00:34]} Rh8 {[%emt 0:04:13]} 45. Kc3 {[%emt 0:02:54]} Rh3 {[%emt 0:01:58]} 46. Kc2 {[%emt 0:00:19]} Rg3 {[%emt 0:00:08]} 47. Kd3 {[%emt 0:06:34]} Kf7 {[%emt 0:03:17]} 48. Ke2 {[%emt 0:00:09]} Rg2+ {[%emt 0:05:35]} 49. Kd3 {[%emt 0:01:42]} e5 {[%emt 0:02:06]} 50. Kc3 {[%emt 0:00:58]} exd4+ {[%emt 0:05:29]} 51. Bxd4 {[%emt 0:00:14]} Rg3+ {[%emt 0:00:07]} 52. Kd2 {[%emt 0:01:57]} Bxd4 {[%emt 0:01:42]} 53. Rcxd4 {[%emt 0:00:04]} Rxd4+ {[%emt 0:03:16]} 54. Rxd4 {[%emt 0:00:01][%mdl 4096] Endgame KR-KR} Ke6 {[%emt 0:00:28]} 55. Rc4 {[%emt 0:01:19]} Ke5 {[%emt 0:00:43]} 56. Rxc6 {[%emt 0:00:12]} Rxg4 {[%emt 0:00:27]} 57. b5 {[%emt 0:00:11]} Rb4 {[%emt 0:02:20]} 58. b6 {[%emt 0:01:10]} Kf4 {[%emt 0:00:38]} 59. Ke2 {[%emt 0:00:30]} Kg3 {[%emt 0:00:48]} 60. Kf1 {[%emt 0:00:54]} Rb1+ {[%emt 0:00:05]} 61. Ke2 {[%emt 0:00:04]} g4 {[%emt 0:00:21]} 62. Rh6 {[%emt 0:00:25]} Kg2 {[%emt 0:00:45]} 63. Rg6 {[%emt 0:00:30]} g3 {[%emt 0:00:06]} 64. Rh6 {[%emt 0:00:28]} Rb3 {[%emt 0:00:19]} 65. Rg6 {[%emt 0:01:11]} Kh2 {[%emt 0:02:01]} 66. Rh6+ {[%emt 0:00:14]} Kg1 {[%emt 0:00:37]} 67. Rg6 {[%emt 0:00:40]} g2 {[%emt 0:00:06]} 68. Rh6 {[%emt 0:00:24]} Rb2+ {[%emt 0:01:52]} 69. Ke1 {[%emt 0:00:10]} Rb4 {[%emt 0:01:18]} 70. Re6 $2 {[%emt 0:01:00][%mdl 8192] [#]} (70. Rg6 $11 {and White has nothing to worry.}) 70... Rh4 $1 $19 {[%emt 0:03:30] ( -> ...Kh2)} 71. b7 {[%emt 0:00:30] [#]} Rh8 $2 {[%emt 0:01:00]} ({Worse is} 71... Rb4 72. Re7 $11) (71... Kh1 $1 {mates} 72. Rg6 Rh8 73. b8=B Rxb8 74. Rh6+ Kg1 75. Kd2 Re8 76. Rh4 Kf2 77. Rg4 Re2+ 78. Kc3 Re3+ 79. Kc4 Rg3 80. Rf4+ Ke3 81. Rf5 g1=Q 82. Re5+ Kf3 83. Re7 Rg4+ 84. Kd5 Qd4+ 85. Ke6 Qb6+ 86. Kd7 Rd4+ 87. Ke8 Qg6+ 88. Rf7+ Rf4 89. Ke7 Rxf7+ 90. Ke8 Qg8#) 72. Re7 $2 {[%emt 0:00:36][%mdl 8192]} (72. Rh6 $11) 72... Kh1 {[%emt 0:00:20] Black mates.} 73. Rh7+ {[%emt 0:00:26]} Rxh7 {[%emt 0:00:08]} 74. b8=Q {[%emt 0:00:04]} g1=Q+ {[%emt 0:00:10] Weighted Error Value: White=0.14 (very precise) /Black=0.10 (very precise)} 0-1